fUSD/lending_fUSD_20260118
["ID","MTS","AMOUNT","RATE_DAILY","PERIOD"]
[402538153,1768701089648,-500.0,0.00017573,2]
[402538154,1768701089658,-500.0,0.00017573,2]
[402538155,1768701089667,-500.0,0.00017573,2]
[402538156,1768701089677,-500.0,0.00017573,2]
[402538157,1768701089686,-500.0,0.00017573,2]
[402538158,1768701089695,-461.98767067,0.00017573,2]
[402538159,1768701089705,-171.29282864,0.00017573,2]
[402538160,1768701089714,-500.0,0.00017573,2]
[402538161,1768701089724,-500.0,0.00017573,2]
[402538162,1768701089733,-500.0,0.00017573,2]
[402538163,1768701089743,-430.61841366,0.00017573,2]
[402538164,1768701089752,-181.23387532,0.00017573,2]
[402538165,1768701089774,-500.0,0.00017573,2]
[402538166,1768701089786,-332.83331926,0.00017573,2]
[402538167,1768701089796,-500.0,0.00017573,2]
[402538168,1768701089806,-500.0,0.00017573,2]
[402538169,1768701089816,-500.0,0.00017573,2]
[402538170,1768701089826,-161.14043786,0.00017573,2]
[402538171,1768701089836,-596.05594459,0.00017573,2]
[402538172,1768701089846,-500.0,0.00017573,2]
[402538173,1768701089856,-500.0,0.00017573,2]
[402538174,1768701089866,-500.0,0.00017573,2]
[402538175,1768701089876,-500.0,0.00017573,2]
[402538176,1768701089887,-500.0,0.00017573,2]
[402538177,1768701089896,-500.0,0.00017573,2]
[402538178,1768701089906,-500.0,0.00017573,2]
[402538179,1768701089917,-500.0,0.00017573,2]
[402538180,1768701089927,-500.0,0.00017573,2]
[402538181,1768701089937,-500.0,0.00017573,2]
[402538182,1768701089947,-500.0,0.00017573,2]
[402538183,1768701089957,-500.0,0.00017573,2]
[402538184,1768701089968,-500.0,0.00017573,2]
[402538185,1768701089978,-500.0,0.00017573,2]
[402538186,1768701089987,-500.0,0.00017573,2]
[402538187,1768701089998,-500.0,0.00017573,2]
[402538188,1768701090008,-500.0,0.00017573,2]
[402538189,1768701090018,-516.86079387,0.00017573,2]
[402538190,1768701093029,-154.7,0.00015775,2]
[402538191,1768701093040,-500.0,0.00016438,2]
[402538192,1768701093049,-500.0,0.00016438,2]
[402538193,1768701093059,-500.0,0.00016438,2]
[402538194,1768701093069,-1218.041822,0.00016438,2]
[402538195,1768701093079,-1018.427586,0.00016438,2]
[402538196,1768701093088,-1218.041822,0.00016438,2]
[402538197,1768701093098,-1018.427586,0.00016438,2]
[402538198,1768701093107,-1759.5543,0.00016438,2]
[402538199,1768701093117,-1018.427586,0.00016438,2]
[402538200,1768701093126,-1759.5543,0.00016438,2]
[402538201,1768701093136,-1218.041822,0.00016438,2]
[402538202,1768701093145,-1759.5543,0.00016438,2]
[402538203,1768701093155,-1218.041822,0.00016438,2]
[402538204,1768701093164,-1018.427586,0.00016438,2]
[402538205,1768701093174,-1218.041822,0.00016438,2]
[402538206,1768701093183,-941.83069613,0.00016438,2]
[402538207,1768701093226,-76.59688987,0.00016438,2]
[402538208,1768701093236,-423.50419598,0.00016438,2]
[402538209,1768701093280,-1336.05010402,0.00016438,2]
[402538210,1768701093289,-1018.427586,0.00016438,2]
[402538211,1768701093300,-94.27599627,0.00016438,2]
[402538212,1768701093343,-1665.27830373,0.00016438,2]
[402538213,1768701093354,-1218.041822,0.00016438,2]
[402538214,1768701093363,-1759.5543,0.00016438,2]
[402538215,1768701093373,-1023.6191405,0.00016438,2]
[402538216,1768701093385,-194.4226815,0.00016438,2]
[402538217,1768701093395,-1218.041822,0.00016438,2]
[402538218,1768701093406,-1218.041822,0.00016438,2]
[402538219,1768701093417,-1218.041822,0.00016438,2]
[402538220,1768701093426,-1218.041822,0.00016438,2]
[402538221,1768701093437,-1759.5543,0.00016604,2]
[402538222,1768701093448,-1018.427586,0.00016604,2]
[402538223,1768701093458,-1759.5543,0.00016604,2]
[402538224,1768701093467,-1011.05591158,0.00016604,2]
[402538230,1768701323878,1884.31,0.00012542,2]
[402538231,1768701379489,341.05479943,0.000273,120]
[402538242,1768701690365,-166.66,0.00014305,2]
[402538243,1768701690388,-3.44665014,0.00014606,2]
[402538244,1768701801282,210.0,9.989e-05,2]
[402538247,1768701885272,-160.03648968,0.00014,2]
[402538248,1768701888518,-264.33267322,0.00014,2]
[402538254,1768701938827,-15.6308371,0.00014,2]
[402538257,1768702089563,513.74378301,0.00027397,120]
[402538258,1768702095341,-260.14946749,0.00014246,2]
[402538305,1768702160405,-129.2877386,0.00014246,2]
[402538306,1768702160425,-195.0,0.00014303,2]
[402538307,1768702160446,-600.0,0.00014418,2]
[402538308,1768702160467,-390.18356859,0.00014532,2]
[402538309,1768702160488,-195.0,0.00014532,2]
[402538310,1768702160508,-600.0,0.00014537,2]
[402538311,1768702160528,-659.31,0.00014551,2]
[402538312,1768702160549,-163.21334986,0.00014606,2]
[402538313,1768702160573,-200.0,0.0001474,2]
[402538314,1768702160593,-1027.73094837,0.00014746,2]
[402538315,1768702160614,-194.7801327,0.00014746,2]
[402538324,1768702232161,-1490.50948365,0.00014746,2]
[402538326,1768702232355,-127.74959742,0.00014746,2]
[402538327,1768702232364,-383.33592441,0.00014826,2]
[402538328,1768702232379,-216.66407559,0.00014826,2]
[402538329,1768702232389,-1200.0,0.00014906,2]
[402538330,1768702232398,-247.0,0.00014907,2]
[402538331,1768702232407,-166.66,0.00014907,2]
[402538332,1768702232416,-300.0,0.00015115,2]
[402538333,1768702232426,-1200.0,0.00015115,2]
[402538334,1768702232436,-1625.83913906,0.00015118,2]
[402538335,1768702232461,-6538.05098953,0.00015118,2]
[402538336,1768702232472,-1305.70181511,0.00015118,2]
[402538341,1768702232592,-2850.15,0.00015118,2]
[402538343,1768702232604,-3449.6180563,0.00015118,2]
[402538345,1768702232613,-166.66,0.00015209,2]
[402538347,1768702232622,-2712.19823304,0.00015246,2]
[402538349,1768702232631,-3669.6924,0.00015246,2]
[402538351,1768702232640,-1155.93782636,0.00015249,2]
[402538353,1768702232651,-4909.65953836,0.00015249,2]
[402538355,1768702232661,-300.0,0.00015249,2]
[402538357,1768702232671,-621.30013395,0.00015249,2]
[402538359,1768702232680,-4781.50376966,0.00015249,2]
[402538361,1768702232691,-1288.60607961,0.00015249,2]
[402538363,1768702232700,-500.0,0.00015249,2]
[402538365,1768702232709,-223.33593274,0.00015249,2]
[402538367,1768702232718,-150.0,0.00015249,2]
[402538368,1768702232727,-39342.20335292,0.0001525,2]
[402538369,1768702232738,-2303.22682107,0.0001525,2]
[402538370,1768702232756,-1741.21936042,0.0001525,2]
[402538373,1768702238262,-500.0,0.00015117,2]
[402538374,1768702238272,-433.13714092,0.00015117,2]
[402538375,1768702238369,-66.86285908,0.00015117,2]
[402538376,1768702238379,-446.66127226,0.00015117,2]
[402538377,1768702238423,-53.33872774,0.00015117,2]
[402538378,1768702238432,-500.0,0.00015117,2]
[402538379,1768702238442,-500.0,0.00015117,2]
[402538380,1768702238451,-374.28433667,0.00015117,2]
[402538381,1768702238482,-125.71566333,0.00015117,2]
[402538382,1768702238492,-500.0,0.00015117,2]
[402538383,1768702238502,-500.0,0.00015117,2]
[402538384,1768702238512,-500.0,0.00015117,2]
[402538385,1768702238522,-500.0,0.00015117,2]
[402538386,1768702238531,-342.52757564,0.00015117,2]
[402538387,1768702238541,-500.0,0.00015117,2]
[402538388,1768702238550,-500.0,0.00015117,2]
[402538389,1768702238560,-500.0,0.00015117,2]
[402538390,1768702238569,-500.0,0.00015117,2]
[402538391,1768702238579,-500.0,0.00015117,2]
[402538392,1768702238588,-500.0,0.00015117,2]
[402538393,1768702238598,-500.0,0.00015117,2]
[402538394,1768702238607,-956613.35046559,0.0001525,2]
[402538395,1768702238616,-9999.99,0.00015349,2]
[402538396,1768702238626,-2389.27,0.00015351,2]
[402538397,1768702238636,-300.0,0.000154,2]
[402538398,1768702238645,-233.73659831,0.000154,2]
[402538399,1768702238654,-159.1,0.00015453,2]
[402538400,1768702238664,-166.66,0.0001551,2]
[402538401,1768702238673,-6065.59736464,0.00015544,2]
[402538402,1768702238683,-6070.10984926,0.00015544,2]
[402538404,1768702238692,-151.0,0.00015587,2]
[402538405,1768702238701,-500.0,0.000156,2]
[402538407,1768702238710,-696.7026,0.00015636,2]
[402538409,1768702238720,-621.30013395,0.00015644,2]
[402538411,1768702238730,-250.0,0.00015671,2]
[402538413,1768702238739,-300.0,0.00015671,2]
[402538415,1768702238748,-250.0,0.00015671,2]
[402538417,1768702238758,-489.89461816,0.00015726,2]
[402538419,1768702238767,-785.41,0.00015726,3]
[402538421,1768702238776,-200.0,0.00015726,2]
[402538423,1768702238787,-151.0,0.00015726,2]
[402538425,1768702238796,-151.0,0.00015726,2]
[402538427,1768702238806,-151.0,0.00015726,2]
[402538429,1768702238815,-151.0,0.00015726,2]
[402538431,1768702238824,-151.0,0.00015726,2]
[402538433,1768702238833,-151.0,0.00015726,2]
[402538435,1768702238844,-151.0,0.00015726,2]
[402538437,1768702238854,-500.0,0.00015726,2]
[402538439,1768702238864,-500.0,0.00015726,2]
[402538441,1768702238874,-151.0,0.00015726,2]
[402538443,1768702238885,-153.92373352,0.00015726,2]
[402538445,1768702238896,-500.0,0.00015726,2]
[402538447,1768702238906,-316.72215502,0.00015726,2]
[402538449,1768702238916,-201.85897912,0.00015726,2]
[402538451,1768702238928,-500.0,0.00015726,2]
[402538453,1768702238937,-514.84842593,0.00015726,2]
[402538455,1768702238946,-503.40807885,0.00015726,2]
[402538457,1768702238955,-202.31671679,0.00015726,2]
[402538458,1768702238968,-151.0,0.00015726,2]
[402538460,1768702238977,-151.0,0.00015726,2]
[402538462,1768702238988,-151.0,0.00015726,2]
[402538464,1768702238997,-151.0,0.00015726,2]
[402538465,1768702239008,-151.0,0.00015726,2]
[402538467,1768702239017,-151.0,0.00015726,2]
[402538469,1768702239028,-151.0,0.00015726,2]
[402538471,1768702239038,-151.0,0.00015726,2]
[402538473,1768702239048,-151.0,0.00015726,2]
[402538475,1768702239057,-151.0,0.00015726,2]
[402538477,1768702239067,-160.93453137,0.00015726,2]
[402538479,1768702239077,-253.67884737,0.00015733,2]
[402538481,1768702239086,-600.0,0.00015733,2]
[402538483,1768702239096,-195.0,0.00015733,2]
[402538485,1768702239105,-195.0,0.00015733,2]
[402538487,1768702239114,-209.87518505,0.00015733,2]
[402538489,1768702239123,-502.20948718,0.00015735,2]
[402538491,1768702239132,-1434.831,0.00015735,2]
[402538493,1768702239141,-179.224,0.00015735,2]
[402538495,1768702239150,-510.22890462,0.00015735,2]
[402538496,1768702239160,-549.58690016,0.00015735,2]
[402538498,1768702239169,-589.03869133,0.00015735,2]
[402538500,1768702239179,-500.0,0.00015735,2]
[402538502,1768702239188,-510.00289299,0.00015735,2]
[402538504,1768702239198,-226573.67263019,0.00015736,2]
[402538506,1768702239206,-31465.9695,0.00015789,2]
[402538508,1768702239216,-562.4653,0.00015789,2]
[402538510,1768702239225,-1000.0,0.00015789,2]
[402538512,1768702239234,-205.70322435,0.000158,2]
[402538514,1768702239244,-1000.0,0.000158,2]
[402538516,1768702239254,-1000.0,0.000158,3]
[402538518,1768702239264,-166.66,0.00015811,2]
[402538520,1768702239274,-6065.59736464,0.00015838,2]
[402538522,1768702239284,-6070.10984926,0.00015838,2]
[402538524,1768702239293,-1109.14535457,0.00015888,5]
[402538526,1768702239302,-500.0,0.00015888,2]
[402538528,1768702239311,-502.32638867,0.00015888,2]
[402538530,1768702239321,-414.0821579,0.00015888,2]
[402538532,1768702239329,-500.0,0.00015888,2]
[402538534,1768702239339,-500.0,0.00015888,2]
[402538536,1768702239348,-500.0,0.00015888,2]
[402538538,1768702239357,-500.0,0.00015888,2]
[402538540,1768702239365,-500.0,0.000159,2]
[402538542,1768702239375,-500.0,0.000159,2]
[402538544,1768702239384,-3512.5699603,0.00015911,2]
[402538546,1768702239393,-802.62,0.00015918,2]
[402538548,1768702239402,-621.30013395,0.00016039,2]
[402538550,1768702239410,-500.0,0.00016082,2]
[402538552,1768702239419,-500.0,0.00016082,2]
[402538554,1768702239428,-500.0,0.00016082,2]
[402538555,1768702239437,-184.40223428,0.00016082,2]
[402538557,1768702239445,-506.32694105,0.00016082,2]
[402538559,1768702239454,-500.0,0.00016082,2]
[402538561,1768702239463,-500.0,0.00016082,2]
[402538563,1768702239472,-506.97630376,0.00016082,2]
[402538565,1768702239481,-6065.59736464,0.00016133,2]
[402538567,1768702239490,-6070.10984926,0.00016133,2]
[402538569,1768702239499,-500.0,0.00016139,2]
[402538571,1768702239510,-500.0,0.00016139,2]
[402538573,1768702239519,-500.0,0.00016139,2]
[402538575,1768702239529,-483.42739922,0.00016139,2]
[402538577,1768702239537,-533.20641898,0.00016139,2]
[402538579,1768702239546,-500.0,0.00016139,2]
[402538581,1768702239555,-613.73032817,0.00016139,2]
[402538583,1768702239564,-500.0,0.00016139,2]
[402538585,1768702239572,-500.0,0.00016139,2]
[402538587,1768702239581,-539.42217884,0.00016139,2]
[402538589,1768702239589,-500.0,0.00016139,2]
[402538590,1768702239600,-511.86882252,0.00016139,2]
[402538592,1768702239609,-205.70322432,0.0001615,2]
[402538594,1768702239618,-2591.73235315,0.00016196,2]
[402538596,1768702239627,-150.0,0.000162,2]
[402538598,1768702239635,-150.0,0.000162,2]
[402538600,1768702239644,-150.0,0.000162,2]
[402538602,1768702239652,-150.0,0.000162,2]
[402538604,1768702239661,-150.0,0.000162,2]
[402538606,1768702239670,-150.0,0.000162,2]
[402538608,1768702239679,-150.0,0.000162,2]
[402538610,1768702239688,-150.0,0.000162,2]
[402538612,1768702239697,-150.0,0.000162,2]
[402538614,1768702239705,-150.0,0.000162,2]
[402538616,1768702239714,-150.0,0.000162,2]
[402538618,1768702239724,-150.0,0.000162,2]
[402538620,1768702239733,-150.0,0.000162,2]
[402538622,1768702239741,-150.0,0.000162,2]
[402538624,1768702239750,-150.0,0.000162,2]
[402538626,1768702239759,-1080.0708922,0.00016218,2]
[402538628,1768702239768,-300.0,0.00016221,2]
[402538630,1768702239777,-600.0,0.00016221,2]
[402538632,1768702239786,-150.0,0.00016262,2]
[402538634,1768702239795,-322.6107,0.00016291,2]
[402538636,1768702239804,-831.53985279,0.00016291,2]
[402538638,1768702239814,-174.61919141,0.00016291,2]
[402538640,1768702239822,-4001.0,0.00016291,2]
[402538642,1768702239831,-281.91052736,0.00016291,2]
[402538643,1768702239840,-620.0,0.00016291,2]
[402538645,1768702239849,-574.12855637,0.00016291,2]
[402538647,1768702239857,-500.0,0.000163,2]
[402538649,1768702239866,-500.0,0.000163,2]
[402538651,1768702239875,-150.0,0.00016324,2]
[402538653,1768702239885,-3022.83392186,0.00016331,2]
[402538655,1768702239894,-150.0,0.00016346,2]
[402538657,1768702239903,-500.0,0.00016356,2]
[402538659,1768702239912,-800.0,0.00016356,2]
[402538661,1768702239923,-500.0,0.00016356,2]
[402538663,1768702239935,-150.0,0.00016386,2]
[402538665,1768702239944,-567.8712304,0.000164,2]
[402538667,1768702239953,-296.98,0.000164,2]
[402538669,1768702239962,-51721.38821002,0.00016418,2]
[402538671,1768702239971,-150.0,0.00016425,2]
[402538673,1768702239980,-6065.59736464,0.00016427,2]
[402538675,1768702239989,-500.0,0.00016437,2]
[402538677,1768702239999,-501.14632219,0.00016438,2]
[402538679,1768702240020,-151.0,0.00016438,2]
[402538681,1768702240040,-1064.97523585,0.00016438,2]
[402538683,1768702240053,-500.0,0.00016438,2]
[402538685,1768702240065,-501.32651158,0.00016438,2]
[402538687,1768702240075,-501.36673818,0.00016438,2]
[402538689,1768702240086,-501.8149228,0.00016438,2]
[402538691,1768702240096,-499.99558861,0.00016438,2]
[402538693,1768702240107,-502.40375353,0.00016438,2]
[402538695,1768702240118,-500.35695421,0.00016438,2]
[402538697,1768702240129,-500.0,0.00016438,2]
[402538699,1768702240138,-500.0,0.00016438,2]
[402538700,1768702240147,-500.0,0.00016438,2]
[402538701,1768702240158,-500.0,0.00016438,2]
[402538702,1768702240169,-500.0,0.00016438,2]
[402538703,1768702240178,-500.0,0.00016438,2]
[402538704,1768702240188,-500.0,0.00016438,2]
[402538705,1768702240197,-461.90287138,0.00016438,2]
[402538707,1768702240206,-500.0,0.00016438,2]
[402538708,1768702240215,-619.76541343,0.00016438,2]
[402538709,1768702240224,-500.0,0.00016438,2]
[402538710,1768702240234,-500.0,0.00016438,2]
[402538711,1768702240243,-500.0,0.00016438,2]
[402538712,1768702240252,-500.0,0.00016438,2]
[402538713,1768702240261,-500.0,0.00016438,2]
[402538714,1768702240271,-500.0,0.00016438,2]
[402538715,1768702240281,-500.0,0.00016438,2]
[402538717,1768702240290,-500.0,0.00016438,2]
[402538718,1768702240299,-500.0,0.00016438,2]
[402538721,1768702240310,-500.0,0.00016438,2]
[402538722,1768702240319,-500.0,0.00016438,2]
[402538724,1768702240328,-500.0,0.00016438,2]
[402538727,1768702240338,-500.0,0.00016438,2]
[402538729,1768702240347,-500.0,0.00016438,2]
[402538731,1768702240356,-500.0,0.00016438,2]
[402538733,1768702240366,-500.0,0.00016438,2]
[402538735,1768702240374,-500.0,0.00016438,2]
[402538737,1768702240383,-500.0,0.00016438,2]
[402538739,1768702240393,-500.0,0.00016438,2]
[402538741,1768702240402,-500.0,0.00016438,2]
[402538743,1768702240411,-500.0,0.00016438,2]
[402538744,1768702240421,-500.0,0.00016438,2]
[402538747,1768702240430,-500.0,0.00016438,2]
[402538749,1768702240439,-500.0,0.00016438,2]
[402538751,1768702240448,-500.0,0.00016438,2]
[402538753,1768702240457,-500.0,0.00016438,2]
[402538755,1768702240467,-500.0,0.00016438,2]
[402538757,1768702240476,-500.0,0.00016438,2]
[402538759,1768702240485,-500.0,0.00016438,2]
[402538761,1768702240495,-203.82700208,0.00016438,2]
[402538763,1768702240504,-575.66,0.00016438,2]
[402538765,1768702240514,-500.0,0.00016438,2]
[402538767,1768702240523,-500.0,0.00016438,2]
[402538769,1768702240531,-500.0,0.00016438,2]
[402538771,1768702240540,-500.0,0.00016438,2]
[402538773,1768702240549,-500.0,0.00016438,2]
[402538775,1768702240558,-500.0,0.00016438,2]
[402538777,1768702240567,-500.0,0.00016438,2]
[402538779,1768702240575,-500.0,0.00016438,2]
[402538781,1768702240584,-500.0,0.00016438,2]
[402538783,1768702240593,-500.0,0.00016438,2]
[402538785,1768702240602,-500.0,0.00016438,2]
[402538787,1768702240612,-500.0,0.00016438,2]
[402538789,1768702240620,-500.0,0.00016438,2]
[402538791,1768702240629,-500.0,0.00016438,2]
[402538793,1768702240638,-500.0,0.00016438,2]
[402538795,1768702240647,-500.0,0.00016438,2]
[402538797,1768702240656,-500.0,0.00016438,2]
[402538798,1768702240665,-500.0,0.00016438,2]
[402538801,1768702240674,-500.0,0.00016438,2]
[402538802,1768702240683,-500.0,0.00016438,2]
[402538804,1768702240692,-500.0,0.00016438,2]
[402538806,1768702240701,-500.0,0.00016438,2]
[402538808,1768702240710,-500.0,0.00016438,2]
[402538810,1768702240721,-500.0,0.00016438,2]
[402538812,1768702240730,-500.0,0.00016438,2]
[402538814,1768702240739,-802.83,0.00016438,2]
[402538816,1768702240748,-500.0,0.00016438,2]
[402538819,1768702240758,-500.0,0.00016438,2]
[402538820,1768702240767,-500.0,0.00016438,2]
[402538823,1768702240776,-500.0,0.00016438,2]
[402538824,1768702240785,-500.0,0.00016438,2]
[402538826,1768702240794,-500.0,0.00016438,2]
[402538828,1768702240803,-500.0,0.00016438,2]
[402538830,1768702240812,-500.0,0.00016438,2]
[402538832,1768702240821,-509.3337683,0.00016438,2]
[402538834,1768702240830,-500.0,0.00016438,2]
[402538836,1768702240839,-500.0,0.00016438,2]
[402538838,1768702240849,-500.0,0.00016438,2]
[402538841,1768702240858,-500.0,0.00016438,2]
[402538843,1768702240868,-500.0,0.00016438,2]
[402538845,1768702240877,-533.24,0.00016438,2]
[402538847,1768702240886,-500.0,0.00016438,2]
[402538848,1768702240895,-500.0,0.00016438,2]
[402538850,1768702240904,-660.48,0.00016438,2]
[402538852,1768702240914,-500.0,0.00016438,2]
[402538854,1768702240929,-500.0,0.00016438,2]
[402538856,1768702240938,-556.48,0.00016438,2]
[402538858,1768702240948,-683.76,0.00016438,2]
[402538860,1768702240957,-176.91983268,0.00016438,2]
[402538862,1768702240968,-500.0,0.00016438,2]
[402538864,1768702240977,-500.0,0.00016438,2]
[402538866,1768702240986,-500.0,0.00016438,2]
[402538868,1768702240996,-500.0,0.00016438,2]
[402538870,1768702241006,-500.0,0.00016438,2]
[402538872,1768702241016,-735.21,0.00016438,2]
[402538874,1768702241025,-222.55981798,0.00016438,2]
[402538876,1768702241035,-500.0,0.00016438,2]
[402538878,1768702241044,-500.0,0.00016438,2]
[402538880,1768702241054,-500.0,0.00016438,2]
[402538882,1768702241064,-500.0,0.00016438,2]
[402538884,1768702241073,-500.0,0.00016438,2]
[402538886,1768702241082,-500.0,0.00016438,2]
[402538888,1768702241091,-500.0,0.00016438,2]
[402538890,1768702241100,-500.0,0.00016438,2]
[402538892,1768702241109,-500.0,0.00016438,2]
[402538894,1768702241118,-500.0,0.00016438,2]
[402538896,1768702241127,-500.0,0.00016438,2]
[402538898,1768702241136,-644.14227135,0.00016438,2]
[402538900,1768702241146,-500.0,0.00016438,2]
[402538902,1768702241155,-500.0,0.00016438,2]
[402538904,1768702241164,-500.0,0.00016438,2]
[402538906,1768702241173,-500.0,0.00016438,2]
[402538908,1768702241182,-514.7,0.00016438,2]
[402538910,1768702241191,-500.0,0.00016438,2]
[402538912,1768702241202,-500.0,0.00016438,2]
[402538914,1768702241213,-500.0,0.00016438,2]
[402538916,1768702241223,-500.0,0.00016438,2]
[402538918,1768702241232,-500.0,0.00016438,2]
[402538920,1768702241241,-500.0,0.00016438,2]
[402538922,1768702241250,-500.0,0.00016438,2]
[402538924,1768702241260,-500.0,0.00016438,2]
[402538926,1768702241269,-500.0,0.00016438,2]
[402538928,1768702241278,-500.0,0.00016438,2]
[402538930,1768702241287,-500.0,0.00016438,2]
[402538932,1768702241296,-500.0,0.00016438,2]
[402538934,1768702241305,-500.0,0.00016438,2]
[402538936,1768702241315,-500.0,0.00016438,2]
[402538938,1768702241324,-500.0,0.00016438,2]
[402538941,1768702241334,-500.0,0.00016438,2]
[402538943,1768702241343,-500.0,0.00016438,2]
[402538945,1768702241353,-500.0,0.00016438,2]
[402538947,1768702241362,-500.0,0.00016438,2]
[402538949,1768702241372,-515.83,0.00016438,2]
[402538951,1768702241381,-500.0,0.00016438,2]
[402538953,1768702241390,-500.0,0.00016438,2]
[402538955,1768702241399,-500.0,0.00016438,2]
[402538956,1768702241408,-541.87,0.00016438,2]
[402538958,1768702241417,-538.66,0.00016438,2]
[402538961,1768702241428,-500.0,0.00016438,2]
[402538963,1768702241437,-500.0,0.00016438,2]
[402538965,1768702241446,-571.39,0.00016438,2]
[402538967,1768702241455,-500.0,0.00016438,2]
[402538968,1768702241464,-500.0,0.00016438,2]
[402538970,1768702241474,-500.0,0.00016438,2]
[402538972,1768702241483,-500.0,0.00016438,2]
[402538974,1768702241492,-500.0,0.00016438,2]
[402538976,1768702241501,-500.0,0.00016438,2]
[402538978,1768702241511,-795.73,0.00016438,2]
[402538980,1768702241521,-500.0,0.00016438,2]
[402538982,1768702241531,-500.0,0.00016438,2]
[402538984,1768702241540,-500.0,0.00016438,2]
[402538987,1768702241550,-500.0,0.00016438,2]
[402538989,1768702241559,-1088.88,0.00016438,2]
[402538991,1768702241568,-500.0,0.00016438,2]
[402538993,1768702241576,-500.0,0.00016438,2]
[402538995,1768702241585,-500.0,0.00016438,2]
[402538997,1768702241594,-500.0,0.00016438,2]
[402538999,1768702241603,-500.0,0.00016438,2]
[402539001,1768702241611,-660.09,0.00016438,2]
[402539002,1768702241620,-500.0,0.00016438,2]
[402539004,1768702241630,-500.0,0.00016438,2]
[402539006,1768702241639,-612.35,0.00016438,2]
[402539008,1768702241648,-500.0,0.00016438,2]
[402539011,1768702241660,-500.0,0.00016438,2]
[402539013,1768702241668,-500.0,0.00016438,2]
[402539014,1768702241677,-500.0,0.00016438,2]
[402539016,1768702241686,-500.0,0.00016438,2]
[402539018,1768702241696,-500.0,0.00016438,2]
[402539020,1768702241706,-500.0,0.00016438,2]
[402539023,1768702241715,-300.0,0.00016438,2]
[402539024,1768702241724,-500.0,0.00016438,2]
[402539026,1768702241733,-500.0,0.00016438,2]
[402539028,1768702241743,-500.0,0.00016438,2]
[402539031,1768702241752,-512.84174735,0.00016438,2]
[402539032,1768702241761,-500.0,0.00016438,2]
[402539034,1768702241770,-500.0,0.00016438,2]
[402539037,1768702241779,-500.0,0.00016438,2]
[402539039,1768702241789,-535.32,0.00016438,2]
[402539041,1768702241797,-500.0,0.00016438,2]
[402539043,1768702241806,-500.0,0.00016438,2]
[402539045,1768702241815,-500.0,0.00016438,2]
[402539047,1768702241824,-500.0,0.00016438,2]
[402539049,1768702241834,-500.0,0.00016438,2]
[402539051,1768702241844,-500.0,0.00016438,2]
[402539053,1768702241853,-500.0,0.00016438,2]
[402539083,1768702242129,-500.0,0.00016438,2]
[402539085,1768702242139,-500.0,0.00016438,2]
[402539087,1768702242148,-500.0,0.00016438,2]
[402539089,1768702242157,-500.0,0.00016438,2]
[402539091,1768702242167,-850.55,0.00016438,2]
[402539093,1768702242176,-500.0,0.00016438,2]
[402539095,1768702242185,-578.46993649,0.00016438,2]
[402539097,1768702242194,-480.0,0.00016438,2]
[402539099,1768702242203,-500.0,0.00016438,2]
[402539101,1768702242212,-500.0,0.00016438,2]
[402539103,1768702242221,-509.00212753,0.00016438,2]
[402539104,1768702242230,-500.0,0.00016438,2]